[Event "Fagernes Chess GM-Swiss 2024"]
[Site "Fagernes"]
[Date "2024.03.27"]
[Round "5.47"]
[White "Akshit Kumar J"]
[Black "Rynning, Rune Kleiven"]
[Result "1-0"]
[ECO "B32"]
[WhiteElo "2172"]
[BlackElo "1813"]
[Annotator "RC"]
[PlyCount "61"]
[EventDate "2024.03.25"]
[EventType "swiss"]
[EventCountry "NOR"]
[SourceTitle "playchess.com"]
[Source "ChessBase"]
[SourceQuality "1"]
[TimeControl "40/6000+30:2400+30"]

1. e4 {[%emt 0:00:10]} c5 {[%emt 0:00:20]} 2. Nf3 {[%emt 0:00:05]} Nc6 {[%emt 0:00:04]} 3. d4 {[%emt 0:00:04]} cxd4 {[%emt 0:00:08]} 4. Nxd4 {[%emt 0:00:02]} e5 {[%emt 0:00:29]} 5. Nb5 {[%emt 0:00:05]} a6 {[%emt 0:00:07]} 6. Nd6+ {[%emt 0:00:03]} Bxd6 {[%emt 0:00:08]} 7. Qxd6 {[%emt 0:00:02]} Qf6 {[%emt 0:00:13]} 8. Qd1 {[%emt 0:00:35]} Qg6 {[%emt 0:00:10]} 9. Nc3 {[%emt 0:00:08]} d5 {[%emt 0:00:24]} 10. Nxd5 {[%emt 0:04:19]} Qxe4+ {[%emt 0:00:30]} 11. Be3 {[%emt 0:04:49]} Nd4 {[%emt 0:00:14]} 12. Nc7+ {[%emt 0:05:46]} Ke7 {[%emt 0:00:08]} 13. Rc1 {[%emt 0:07:58]} Bg4 {[%emt 0:05:43]} 14. Qd3 {[%emt 0:00:54]} Qxd3 {[%emt 0:06:01]} 15. Bxd3 {[%emt 0:00:03]} Rd8 {[%emt 0:04:45]} 16. c4 {[%emt 0:03:17]} Nf3+ {[%emt 0:28:37]} 17. gxf3 {[%emt 0:01:20]} Bxf3 {[%emt 0:02:15]} 18. Nd5+ {[%emt 0:09:15]} Rxd5 {[%emt 0:00:42]} 19. cxd5 {[%emt 0:00:10]} Bxh1 {[%emt 0:00:12]} 20. Rc7+ {[%emt 0:00:48]} Kd6 {[%emt 0:24:24]} 21. Rxb7 {[%emt 0:01:20]} Bxd5 {[%emt 0:03:06]} 22. Rb8 {[%emt 0:03:40]} Kc7 {[%emt 0:08:34]} 23. Rf8 {[%emt 0:03:24]} Bxa2 {[%emt 0:01:23]} 24. Bxa6 {[%emt 0:01:24]} f6 {[%emt 0:06:32]} 25. b4 {[%emt 0:00:34]} Bd5 {[%emt 0:04:03]} 26. b5 {[%emt 0:00:35]} g5 {[%emt 0:01:51]} 27. Bc5 {[%emt 0:02:05]} h5 {[%emt 0:00:37]} 28. b6+ {[%emt 0:00:11]} Kd7 {[%emt 0:00:19]} 29. Bc8+ {[%emt 0:00:17]} Kc6 {[%emt 0:00:58]} 30. b7 {[%emt 0:00:07]} Kc7 {[%emt 0:00:08]} 31. Bd6+ {[%emt 0:00:19]} 1-0

[Event "Fagernes Chess GM-Swiss 2024"]
[Site "Fagernes"]
[Date "2024.03.27"]
[Round "5.48"]
[White "Lien, Sebastian"]
[Black "Juodziukynas, Aidas"]
[Result "1-0"]
[ECO "D04"]
[WhiteElo "1885"]
[BlackElo "1893"]
[Annotator "NA RC"]
[PlyCount "113"]
[EventDate "2024.03.25"]
[EventType "swiss"]
[EventCountry "NOR"]
[SourceTitle "playchess.com"]
[Source "ChessBase"]
[SourceQuality "1"]
[TimeControl "40/6000+30:2400+30"]

1. d4 {[%emt 0:04:43]} Nf6 {[%emt 0:00:01]} 2. Nf3 {[%emt 0:00:05]} d5 {[%emt 0:00:55]} 3. e3 {[%emt 0:01:08]} c5 {[%emt 0:00:15]} 4. b3 {[%emt 0:00:18]} Nc6 {[%emt 0:00:35]} 5. Bd3 {[%emt 0:00:44]} Bg4 {[%emt 0:00:31]} 6. Bb2 {[%emt 0:03:34]} cxd4 {[%emt 0:00:40]} 7. exd4 {[%emt 0:00:21]} e6 {[%emt 0:01:04] D04: Colle System.} 8. O-O {[%emt 0:01:10]} Bd6 {[%emt 0:00:13]} 9. Re1 {[%emt 0:09:45]} O-O {[%emt 0:01:09]} 10. Nbd2 {[%emt 0:01:49]} Qc7 {[%emt 0:00:37]} 11. h3 {[%emt 0:01:46]} Bh5 {[%emt 0:00:02]} 12. a3 {[%emt 0:08:58]} Rfe8 {[%emt 0:00:39]} 13. Be2 {[%emt 0:02:01]} Rac8 {[%emt 0:02:00]} 14. c4 {[%emt 0:06:56]} b6 {[%emt 0:02:45]} 15. Rc1 {[%emt 0:04:49]} Qe7 {[%emt 0:02:18]} 16. c5 {[%emt 0:12:50]} bxc5 {[%emt 0:01:24]} 17. dxc5 {[%emt 0:00:09]} Bxc5 {[%emt 0:00:30]} 18. b4 {[%emt 0:00:15]} Bd6 {[%emt 0:01:57]} 19. Bb5 {[%emt 0:00:50]} Qb7 {[%emt 0:00:43]} 20. Qa4 {[%emt 0:00:24]} Nxb4 {[%emt 0:04:45]} 21. axb4 {[%emt 0:03:27]} Rxc1 {[%emt 0:00:14]} 22. Rxc1 {[%emt 0:07:51]} Rb8 {[%emt 0:00:16]} 23. Bxf6 {[%emt 0:09:37]} gxf6 {[%emt 0:00:20]} 24. Bd3 {[%emt 0:14:45]} Qxb4 {[%emt 0:01:48]} 25. Qxa7 {[%emt 0:08:35]} Qf4 {[%emt 0:06:55]} 26. Qe3 {[%emt 0:00:58]} Qxe3 {[%emt 0:06:37]} 27. fxe3 {[%emt 0:00:06]} Ra8 {[%emt 0:01:30]} 28. Kf2 {[%emt 0:01:34]} Ra3 {[%emt 0:03:58]} 29. Ne1 {[%emt 0:01:35]} Bb4 {[%emt 0:01:46]} 30. Rc2 {[%emt 0:00:33]} Bd1 {[%emt 0:00:26]} 31. Rc1 {[%emt 0:01:34]} Ba4 {[%emt 0:01:28]} 32. Ndf3 {[%emt 0:01:19]} e5 {[%emt 0:01:11]} 33. Be2 {[%emt 0:01:24]} e4 {[%emt 0:02:42]} 34. Nd4 {[%emt 0:00:17]} Bd7 {[%emt 0:03:31]} 35. Rc7 {[%emt 0:01:07]} Be6 {[%emt 0:01:50]} 36. Nec2 {[%emt 0:00:10]} Rc3 {[%emt 0:01:16]} 37. Rxc3 {[%emt 0:00:57]} Bxc3 {[%emt 0:00:01]} 38. Nb5 {[%emt 0:00:32]} Be5 {[%emt 0:00:32]} 39. Ncd4 {[%emt 0:00:26]} f5 {[%emt 0:02:22]} 40. Bd1 {[%emt 0:00:34]} f4 {[%emt 0:02:06]} 41. Bb3 {[%emt 0:04:15]} Kg7 {[%emt 0:02:45]} 42. Nc3 {[%emt 0:03:47]} f3 {[%emt 0:01:50]} 43. Bxd5 {[%emt 0:04:53]} Bc8 {[%emt 0:03:33]} 44. g4 {[%emt 0:10:25]} h5 {[%emt 0:00:51]} 45. gxh5 {[%emt 0:02:08]} Bxh3 {[%emt 0:00:26]} 46. Bxe4 {[%emt 0:00:07]} Kh6 {[%emt 0:04:38]} 47. Bxf3 {[%emt 0:00:26]} f5 {[%emt 0:00:21]} 48. Nce2 {[%emt 0:02:43]} Kg5 {[%emt 0:00:45]} 49. Ne6+ {[%emt 0:01:14]} Kh6 {[%emt 0:01:20]} 50. N6f4 {[%emt 0:00:16]} Bg4 {[%emt 0:01:45]} 51. Bxg4 {[%emt 0:02:20]} fxg4 {[%emt 0:00:04]} 52. Kg3 {[%emt 0:00:34]} Kg5 {[%emt 0:00:04]} 53. Nd4 {[%emt 0:03:36]} Bb8 {[%emt 0:00:37]} 54. Nde6+ {[%emt 0:04:21]} Kh6 {[%emt 0:00:04]} 55. Kxg4 {[%emt 0:00:10]} Ba7 {[%emt 0:00:04]} 56. e4 {[%emt 0:00:15]} Bb8 {[%emt 0:01:31]} 57. Kf5 {[%emt 0:00:22]} 1-0

[Event "Fagernes Chess GM-Swiss 2024"]
[Site "Fagernes"]
[Date "2024.03.27"]
[Round "5.49"]
[White "Valcu, Lavinia"]
[Black "Bech, Havard Eriksen"]
[Result "1/2-1/2"]
[ECO "A01"]
[WhiteElo "2070"]
[BlackElo "1951"]
[Annotator "NA RC"]
[PlyCount "87"]
[EventDate "2024.03.25"]
[EventType "swiss"]
[EventCountry "NOR"]
[SourceTitle "playchess.com"]
[Source "ChessBase"]
[SourceQuality "1"]
[TimeControl "40/6000+30:2400+30"]

1. b3 {[%emt 0:00:01]} e5 {[%emt 0:00:34]} 2. Bb2 {[%emt 0:00:08]} Nc6 {[%emt 0:00:08]} 3. e3 {[%emt 0:00:04]} d5 {[%emt 0:02:44]} 4. Bb5 {[%emt 0:00:10]} Bd6 {[%emt 0:00:34]} 5. f4 {[%emt 0:00:05]} Qh4+ {[%emt 0:06:06]} 6. g3 {[%emt 0:00:07]} Qe7 {[%emt 0:00:06]} 7. Nf3 {[%emt 0:00:03]} Bg4 {[%emt 0:00:46]} 8. fxe5 {[%emt 0:00:08]} Bxe5 {[%emt 0:00:18]} 9. Bxe5 {[%emt 0:00:04]} Bxf3 {[%emt 0:00:20]} 10. Qxf3 {[%emt 0:00:05]} Qxe5 {[%emt 0:00:10]} 11. O-O {[%emt 0:00:06]} Nf6 {[%emt 0:01:08]} 12. Bxc6+ {[%emt 0:00:07]} bxc6 {[%emt 0:00:03]} 13. Nc3 {[%emt 0:00:07]} O-O {[%emt 0:00:59]} 14. Qf5 {[%emt 0:00:02]} Rfe8 {[%emt 0:01:10]} 15. Qxe5 {[%emt 0:01:00]} Rxe5 {[%emt 0:00:02]} 16. Rf4 {[%emt 0:00:32]} Ne4 {[%emt 0:02:51]} 17. d4 {[%emt 0:05:39]} Nxc3 {[%emt 0:05:13]} 18. dxe5 {[%emt 0:00:32]} Ne2+ {[%emt 0:00:07]} 19. Kf2 {[%emt 0:00:12]} Nxf4 {[%emt 0:00:07]} 20. exf4 {[%emt 0:00:25]} c5 {[%emt 0:00:34]} 21. Ke3 {[%emt 0:03:45]} a5 {[%emt 0:00:16]} 22. f5 {[%emt 0:05:02]} Re8 {[%emt 0:03:16]} 23. Kf4 {[%emt 0:00:29]} g5+ {[%emt 0:00:18]} 24. Kxg5 {[%emt 0:06:33]} Rxe5 {[%emt 0:00:13]} 25. Rd1 {[%emt 0:00:53]} c6 {[%emt 0:00:10]} 26. Rd2 {[%emt 0:00:46]} Kg7 {[%emt 0:06:53]} 27. g4 {[%emt 0:00:59]} h6+ {[%emt 0:04:52]} 28. Kh5 {[%emt 0:05:56]} Re4 {[%emt 0:06:23]} 29. h4 {[%emt 0:04:13]} a4 {[%emt 0:03:10]} 30. g5 {[%emt 0:07:23]} hxg5 {[%emt 0:00:21]} 31. hxg5 {[%emt 0:00:14]} axb3 {[%emt 0:15:50]} 32. f6+ {[%emt 0:04:06]} Kf8 {[%emt 0:01:27]} 33. axb3 {[%emt 0:00:24]} c4 {[%emt 0:17:22]} 34. bxc4 {[%emt 0:00:29]} Rxc4 {[%emt 0:00:03]} 35. g6 {[%emt 0:09:26]} fxg6+ {[%emt 0:00:08]} 36. Kxg6 {[%emt 0:00:07]} Rc3 {[%emt 0:02:06]} 37. Rh2 {[%emt 0:09:05]} Rg3+ {[%emt 0:00:09]} 38. Kf5 {[%emt 0:00:06]} Rf3+ {[%emt 0:00:18]} 39. Ke6 {[%emt 0:00:37]} Re3+ {[%emt 0:00:16]} 40. Kd6 {[%emt 0:07:29]} Rc3 {[%emt 0:00:29]} 41. Ke6 {[%emt 0:42:05]} Re3+ {[%emt 0:40:27]} 42. Kd7 {[%emt 0:00:47]} Rc3 {[%emt 0:00:18]} 43. Ke6 {[%emt 0:00:41]} Re3+ {[%emt 0:00:16]} 44. Kd6 {[%emt 0:00:32]} 1/2-1/2

[Event "Fagernes Chess GM-Swiss 2024"]
[Site "Fagernes"]
[Date "2024.03.28"]
[Round "6.1"]
[White "Jumabayev, Rinat"]
[Black "Ganguly, Surya Shekhar"]
[Result "1-0"]
[ECO "C54"]
[WhiteElo "2598"]
[BlackElo "2574"]
[Annotator "TA"]
[PlyCount "131"]
[EventDate "2024.03.25"]
[EventType "swiss"]
[EventCountry "NOR"]
[SourceTitle "playchess.com"]
[Source "ChessBase"]
[SourceQuality "1"]
[TimeControl "40/6000+30:2400+30"]

{[%evp 48,131,29,26,47,47,41,47,41,38,46,40,50,45,54,39,44,50,53,53,56,63,62,60,66,69,59,67,61,66,65,64,64,58,85,86,89,85,85,88,89,79,127,128,128,128,128,128,140,140,140,118,119,118,134,144,144,144,153,160,600,622,720,622,622,622,622,622,615,615,608,600,593,560,545,545,531,498,483,462,454,393,393,352,345,345]} 1. e4 {[%emt 0:06:36]} e5 {[%emt 0:00:10]} 2. Nf3 {[%emt 0:00:14]} Nc6 {[%emt 0:00:05]} 3. Bc4 {[%emt 0:00:04]} Bc5 {[%emt 0:00:17]} 4. O-O {[%emt 0:00:09]} Nf6 {[%emt 0:00:35]} 5. d3 {[%emt 0:00:06]} d6 {[%emt 0:00:09]} 6. c3 {[%emt 0:00:07]} a6 {[%emt 0:00:27]} 7. Bb3 {[%emt 0:00:07]} Ba7 {[%emt 0:01:19]} 8. Re1 {[%emt 0:00:33]} h6 {[%emt 0:00:15]} 9. Nbd2 {[%emt 0:00:42]} O-O {[%emt 0:00:31]} 10. h3 {[%emt 0:00:36]} Re8 {[%emt 0:02:54]} 11. Nf1 {[%emt 0:00:17]} Be6 {[%emt 0:00:11]} 12. Bc2 {[%emt 0:00:04] C54: Italienische Partie (Hauptvariante).} d5 {[%emt 0:01:04]} 13. exd5 {[%emt 0:00:10]} Qxd5 {[%emt 0:07:19]} 14. Ng3 {[%emt 0:00:52]} Rad8 {[%emt 0:00:36]} 15. Qe2 {[%emt 0:11:39]} Qd7 {[%emt 0:08:41]} 16. Bd2 $5 {[%emt 0:36:02][%mdl 4] Verlässt die ausgetretenen Pfade.} Nd5 {[%emt 0:03:57]} 17. Qf1 {[%emt 0:06:03]} Nf4 $146 {[%emt 0:06:46]} ({Predecessor:} 17... Qd6 18. Nh4 Qe7 19. Nhf5 Qf6 20. d4 Bxf5 21. Nxf5 Nde7 22. dxe5 Nxe5 23. Nxe7+ Rxe7 {½-½ Costa,L (2320)-Schneider,J (2266) Rosenheim Millennium 2022 (2)}) 18. d4 {[%emt 0:13:58]} Bd5 {[%emt 0:06:28]} 19. Bxf4 {[%emt 0:15:03]} exf4 {[%emt 0:00:23]} 20. Qd3 {[%emt 0:00:16]} g6 {[%emt 0:01:36]} 21. Ne4 {[%emt 0:00:12]} Qf5 {[%emt 0:03:43]} 22. Nh4 {[%emt 0:02:58]} Bxe4 {[%emt 0:00:56]} 23. Rxe4 {[%emt 0:00:21]} Qxe4 {[%emt 0:05:09]} 24. Qxe4 {[%emt 0:00:05]} Rxe4 {[%emt 0:00:05]} 25. Bxe4 {[%emt 0:00:04]} Rd6 {[%emt 0:01:26]} 26. Nf3 {[%emt 0:06:13]} Ne7 {[%emt 0:01:47]} 27. Re1 {[%emt 0:05:35]} Kf8 {[%emt 0:00:28]} 28. Ne5 {[%emt 0:01:58]} c6 {[%emt 0:03:27]} 29. Kf1 {[%emt 0:01:55]} g5 {[%emt 0:00:28]} 30. Bc2 {[%emt 0:00:38]} c5 {[%emt 0:01:03]} 31. Bb3 {[%emt 0:01:08]} cxd4 {[%emt 0:06:41]} 32. Nxf7 {[%emt 0:00:01]} Rf6 {[%emt 0:01:39]} 33. Nd8 {[%emt 0:00:17]} dxc3 {[%emt 0:00:32]} 34. bxc3 {[%emt 0:01:03]} b5 {[%emt 0:08:14]} 35. Ne6+ {[%emt 0:00:06]} Ke8 {[%emt 0:00:03]} 36. Rd1 {[%emt 0:00:23]} Bb6 $1 {[%emt 0:00:20]} 37. Rd6 {[%emt 0:00:42]} Nc8 {[%emt 0:00:15]} 38. Nc7+ $1 {[%emt 0:01:23]} Ke7 $1 {[%emt 0:00:02]} 39. Rxf6 {[%emt 0:00:12]} Kxf6 {[%emt 0:00:01]} 40. Nxa6 {[%emt 0:00:19]} Nd6 {[%emt 0:01:27]} 41. Nb4 {[%emt 0:03:54]} Ba7 {[%emt 0:06:02]} 42. Bc2 {[%emt 0:02:25]} Bc5 {[%emt 0:05:49]} 43. Ke2 {[%emt 0:00:52]} Ba7 {[%emt 0:00:18]} 44. Bd3 {[%emt 0:03:32]} Bc5 {[%emt 0:00:14]} (44... Ke6 $142 45. g3 fxg3 46. fxg3 Bb6) 45. Nd5+ $16 {[%emt 0:16:05]} Ke5 {[%emt 0:00:25]} 46. Nc7 {[%emt 0:00:23]} Bb6 {[%emt 0:09:15]} 47. Nxb5 {[%emt 0:02:48]} Nxb5 {[%emt 0:01:06]} 48. Bxb5 {[%emt 0:00:02]} Ba5 {[%emt 0:11:49]} 49. c4 {[%emt 0:00:10]} Bb6 {[%emt 0:00:09]} 50. Kf3 {[%emt 0:03:45]} Kf5 {[%emt 0:00:14]} 51. Bd7+ {[%emt 0:01:32]} Ke5 {[%emt 0:01:04]} 52. Kg4 {[%emt 0:03:14]} Bxf2 {[%emt 0:10:49]} 53. Kh5 {[%emt 0:00:11]} Kd4 $2 {[%emt 0:02:48]} (53... Kf6 $16 54. Kxh6 Bc5) 54. Kxh6 $18 {[%emt 0:01:34]} Be3 {[%emt 0:00:15]} 55. Bg4 {[%emt 0:00:22]} (55. Kxg5 $2 {ist das falsche Schlagen.} f3+ (55... Kxc4 $2 56. Kf5 $18) 56. Kf6 f2 $19 (56... Kxc4 $2 57. gxf3 Bf2 58. f4 $18) (56... fxg2 $2 57. c5 $19)) 55... f3 {[%emt 0:00:41]} 56. gxf3 {[%emt 0:01:04]} (56. Bxf3 Kxc4 (56... g4+ $2 57. Kg6 $18) 57. Kg6 Bf4 $18) 56... Kxc4 {[%emt 0:00:06]} 57. Kh5 {[%emt 0:00:05]} Kd5 {[%emt 0:02:32]} 58. h4 {[%emt 0:00:18]} gxh4 {[%emt 0:00:05]} 59. Kxh4 {[%emt 0:00:07]} Ke5 {[%emt 0:00:17]} 60. Bd7 {[%emt 0:01:37]} Kf4 {[%emt 0:02:39] [#]} 61. Bc6 $1 {[%emt 0:00:07]} Bd2 {[%emt 0:02:23]} 62. Kh5 {[%emt 0:00:21]} Kf5 {[%emt 0:00:25]} 63. Be4+ {[%emt 0:00:12]} Kf4 {[%emt 0:00:41]} 64. Kg6 {[%emt 0:00:23]} Ke5 {[%emt 0:00:04]} 65. Kf7 {[%emt 0:02:07]} Bg5 {[%emt 0:01:19]} 66. a4 {[%emt 0:00:22]} 1-0

[Event "Fagernes Chess GM-Swiss 2024"]
[Site "Fagernes"]
[Date "2024.03.28"]
[Round "6.2"]
[White "Blomqvist, Erik"]
[Black "Gorshtein, Ido"]
[Result "1/2-1/2"]
[ECO "B12"]
[WhiteElo "2511"]
[BlackElo "2539"]
[Annotator "TA"]
[PlyCount "68"]
[EventDate "2024.03.25"]
[EventType "swiss"]
[EventCountry "NOR"]
[SourceTitle "playchess.com"]
[Source "ChessBase"]
[SourceQuality "1"]
[TimeControl "40/6000+30:2400+30"]

{[%evp 9,68,-3,8,10,10,-11,25,-15,-14,-12,-14,-27,-9,0,-7,-6,0,-8,0,0,0,0,0,0,0,-6,-6,0,0,0,0,0,-6,-14,26,13,24,20,23,10,22,2,42,17,10,0,0,0,0,0,10,0,0,0,0,0,0,0,0,0,0]} 1. e4 {[%emt 0:00:37]} c6 {[%emt 0:00:03]} 2. d4 {[%emt 0:00:08]} d5 {[%emt 0:00:04]} 3. e5 {[%emt 0:00:12]} Bf5 {[%emt 0:00:07]} 4. h4 {[%emt 0:00:19]} h5 {[%emt 0:00:09]} 5. Bd3 {[%emt 0:00:50]} Bxd3 {[%emt 0:00:10]} 6. Qxd3 {[%emt 0:00:07][%cal Oe5e6] aiming for e6!} Qa5+ {[%emt 0:00:05]} 7. b4 {[%emt 0:00:49]} Qa6 {[%emt 0:00:32]} 8. Qd1 {[%emt 0:01:00][%cal Oe5e6] White has an edge.} e6 {[%emt 0:00:18]} 9. c3 {[%emt 0:00:12]} Qb6 {[%emt 0:05:59]} 10. a4 {[%emt 0:01:44]} a5 {[%emt 0:00:49]} 11. bxa5 {[%emt 0:00:39]} Qxa5 {[%emt 0:01:09]} 12. Ne2 {[%emt 0:00:49]} Nd7 {[%emt 0:12:01]} 13. O-O {[%emt 0:00:26]} Ne7 {[%emt 0:00:04]} 14. Bg5 {[%emt 0:15:49]} b5 {[%emt 0:14:42][%cal Rb5a4]} 15. Nd2 {[%emt 0:14:36] [#] Hoping for axb5.} bxa4 {[%emt 0:00:18]} 16. Qc2 {[%emt 0:10:01]} Qa6 {[%emt 0:06:39]} 17. c4 {[%emt 0:11:09]} Nf5 {[%emt 0:20:05]} 18. Rfb1 {[%emt 0:12:28][%cal Bf1b1,Bb1b4,Bb4a4][%mdl 32] Against Bb4} Be7 {[%emt 0:09:28]} 19. Bxe7 {[%emt 0:05:02]} Nxe7 {[%emt 0:10:33]} 20. Ra3 {[%emt 0:12:11]} O-O {[%emt 0:01:06]} 21. Rb4 {[%emt 0:03:43]} Rfb8 {[%emt 0:02:29]} 22. Rbxa4 {[%emt 0:01:13]} ({Much weaker is} 22. Raxa4 Rxb4 23. Rxa6 Rxa6 24. cxd5 cxd5 $17) 22... Qb7 {[%emt 0:01:22]} 23. c5 {[%emt 0:05:31]} Nf5 {[%emt 0:01:01]} 24. g3 {[%emt 0:00:16]} Nf8 {[%emt 0:01:40]} 25. Kg2 {[%emt 0:01:10]} (25. Kf1 $5) 25... Ng6 {[%emt 0:02:12]} 26. Rxa8 {[%emt 0:05:25]} (26. Rb3 $5 Qc8 27. Rxa8 Rxa8 28. Qb2 $17) 26... Rxa8 {[%emt 0:00:03] The position is equal.} 27. Qb1 {[%emt 0:00:34]} Qc8 {[%emt 0:00:28]} 28. Rb3 {[%emt 0:01:58]} Qa6 {[%emt 0:00:59]} 29. Qd1 {[%emt 0:02:38]} Nge7 {[%emt 0:07:37]} 30. Nf3 {[%emt 0:00:30]} g6 {[%emt 0:00:51]} 31. Nf4 {[%emt 0:01:49]} Qa2 {[%emt 0:00:39]} 32. Qd3 {[%emt 0:00:33]} Kg7 {[%emt 0:00:46]} 33. Qc3 {[%emt 0:00:25]} Ra4 {[%emt 0:01:03]} 34. Qb2 {[%emt 0:01:49]} Qxb2 {[%emt 0:01:33] An interesting draw.   Weighted Error Value: White=0.05 (flawless) /Black=0.05 (flawless) .  Inaccurate:     	White=1     	Black=3      OK:         	White=12    	Black=16     Best:        	White=1     	Black=2} 1/2-1/2

[Event "Fagernes Chess GM-Swiss 2024"]
[Site "Fagernes"]
[Date "2024.03.28"]
[Round "6.3"]
[White "Urkedal, Frode Olav Olsen"]
[Black "Sidhant, Mohapatra"]
[Result "1-0"]
[ECO "D19"]
[WhiteElo "2536"]
[BlackElo "2379"]
[Annotator "TA"]
[PlyCount "79"]
[EventDate "2024.03.25"]
[EventType "swiss"]
[EventCountry "NOR"]
[SourceTitle "playchess.com"]
[Source "ChessBase"]
[SourceQuality "1"]
[TimeControl "40/6000+30:2400+30"]

{[%evp 23,79,23,24,15,35,5,10,1,5,0,13,-13,-12,-5,22,25,30,8,8,8,18,18,23,9,34,16,49,49,122,118,128,130,137,141,212,209,206,198,215,234,211,227,255,189,262,250,448,466,519,455,597,620,631,560,766,706,666,617]} 1. d4 {[%emt 0:00:30]} d5 {[%emt 0:00:35]} 2. c4 {[%emt 0:00:06]} c6 {[%emt 0:00:06]} 3. Nf3 {[%emt 0:00:18]} Nf6 {[%emt 0:00:18]} 4. Nc3 {[%emt 0:00:16]} dxc4 {[%emt 0:05:50]} 5. a4 {[%emt 0:00:19]} Bf5 {[%emt 0:00:06]} 6. e3 {[%emt 0:00:11]} e6 {[%emt 0:02:46]} 7. Bxc4 {[%emt 0:00:41]} Bb4 {[%emt 0:00:06]} 8. O-O {[%emt 0:00:17]} O-O {[%emt 0:00:03]} 9. Qe2 {[%emt 0:01:32]} Bg6 {[%emt 0:00:29]} 10. Ne5 {[%emt 0:00:37]} Nbd7 {[%emt 0:00:04]} 11. Nxg6 {[%emt 0:00:07]} hxg6 {[%emt 0:00:03]} 12. Rd1 {[%emt 0:00:14]} Qc7 {[%emt 0:00:05]} 13. Bd2 {[%emt 0:02:40]} a5 {[%emt 0:00:27]} 14. Rac1 {[%emt 0:00:28]} Rad8 {[%emt 0:01:16]} 15. Ba2 {[%emt 0:01:21] Die Stellung ist ausgeglichen.} Nb6 {[%emt 0:00:07]} 16. h3 {[%emt 0:02:23]} e5 {[%emt 0:01:52]} 17. dxe5 {[%emt 0:23:53]} Qxe5 {[%emt 0:00:43]} 18. Be1 {[%emt 0:00:13]} Nbd5 {[%emt 0:15:54]} 19. Nxd5 {[%emt 0:05:34]} Nxd5 {[%emt 0:00:28]} 20. Bxd5 {[%emt 0:00:40]} Rxd5 {[%emt 0:00:13]} 21. Rxd5 {[%emt 0:03:42]} Qxd5 {[%emt 0:00:17]} 22. Bxb4 {[%emt 0:00:05]} axb4 $11 {[%emt 0:00:06][%mdl 4096] Endspiel. KQR-KQR} 23. Rc4 {[%emt 0:23:31]} Qa5 {[%emt 0:06:56]} 24. Qc2 {[%emt 0:05:34]} Rd8 {[%emt 0:02:45]} 25. b3 {[%emt 0:01:25]} Rd6 {[%emt 0:01:17] Jetzt gehts bergab für Schwarz.} (25... Qb6 $14) 26. Qe4 $16 {[%emt 0:01:18]} Qd8 {[%emt 0:15:02] Verhindert Qe8+.} 27. Rxb4 {[%emt 0:03:07]} Rd1+ {[%emt 0:00:03]} 28. Kh2 {[%emt 0:00:07]} Qd6+ {[%emt 0:13:49]} (28... Rd7 $16 29. g3 Qe7 30. Qxe7 Rxe7) 29. g3 $18 {[%emt 0:04:11]} Qd7 {[%emt 0:03:05] [#]} 30. Qg4 $1 {[%emt 0:16:02]} Qxg4 {[%emt 0:01:34]} 31. hxg4 {[%emt 0:00:13] KR-KR} ({Keinesfalls} 31. Rxg4 $6 c5 $16) 31... Rd7 {[%emt 0:00:06]} 32. Rd4 {[%emt 0:00:44]} Rc7 {[%emt 0:00:06]} 33. Rd8+ {[%emt 0:00:44]} Kh7 {[%emt 0:00:02]} 34. g5 {[%emt 0:01:49]} f5 $2 {[%emt 0:02:41] [#]} (34... b5 35. axb5 cxb5) 35. Rb8 {[%emt 0:01:36] Weiß steht klar auf Gewinn.} c5 {[%emt 0:00:27][%cal Bc6c5,Bc5c4][%mdl 32]} 36. a5 {[%emt 0:00:06]} Rd7 {[%emt 0:01:32]} 37. Kg2 {[%emt 0:00:17]} Re7 {[%emt 0:00:42]} 38. Kf1 {[%emt 0:00:33]} Rc7 {[%emt 0:00:04]} 39. Ke1 {[%emt 0:02:43]} c4 {[%emt 0:00:09]} 40. b4 {[%emt 0:03:33] Gewichteter Fehlerwert: Weiß=0.08 (makellos) /Schwarz=0.32.  Fehler:       	---       	Schwarz=3     Ungenau:       	Weiß=2     	Schwarz=4     OK:         	Weiß=9     	Schwarz=5     Bester:       	Weiß=3     	---} 1-0

[Event "Fagernes Chess GM-Swiss 2024"]
[Site "Fagernes"]
[Date "2024.03.28"]
[Round "6.4"]
[White "Ingebretsen, Jens E"]
[Black "Kulaots, Kaido"]
[Result "0-1"]
[ECO "E11"]
[WhiteElo "2402"]
[BlackElo "2534"]
[Annotator "TA"]
[PlyCount "54"]
[EventDate "2024.03.25"]
[EventType "swiss"]
[EventCountry "NOR"]
[SourceTitle "playchess.com"]
[Source "ChessBase"]
[SourceQuality "1"]
[TimeControl "40/6000+30:2400+30"]

{[%evp 11,53,18,25,30,23,24,25,17,13,19,16,0,0,0,0,0,5,-47,-18,-69,-9,-58,-68,-105,-106,-92,-54,-47,-43,-47,-37,-47,-45,-131,-78,-545,-356,-358,-348,-943,-922,-1441,-1414,-29999]} 1. d4 {[%emt 0:00:04]} Nf6 {[%emt 0:00:20]} 2. c4 {[%emt 0:00:07]} e6 {[%emt 0:00:10]} 3. Nf3 {[%emt 0:00:11]} Bb4+ {[%emt 0:00:19]} 4. Bd2 {[%emt 0:00:15]} a5 {[%emt 0:00:23]} 5. a3 {[%emt 0:00:09]} Bxd2+ {[%emt 0:00:20]} 6. Qxd2 {[%emt 0:00:06]} O-O {[%emt 0:09:23]} 7. Nc3 {[%emt 0:02:25]} d5 {[%emt 0:04:28]} 8. e3 {[%emt 0:01:01]} Nbd7 {[%emt 0:03:54]} 9. Bd3 {[%emt 0:17:48] Weiß hat minimalen Vorteil.} Qe7 {[%emt 0:04:03]} 10. O-O {[%emt 0:02:26]} b6 {[%emt 0:22:08]} 11. e4 {[%emt 0:10:29]} dxe4 {[%emt 0:01:30]} 12. Nxe4 {[%emt 0:00:10]} Bb7 {[%emt 0:00:34]} 13. Rfe1 {[%emt 0:06:48]} Rfd8 {[%emt 0:08:17]} 14. Qg5 {[%emt 0:09:07]} (14. Rad1 $11) 14... h6 {[%emt 0:05:33]} (14... Nc5 $5 15. Nxc5 (15. dxc5 Rxd3 16. cxb6 cxb6 $17) 15... bxc5 $15) 15. Qh4 {[%emt 0:01:19]} (15. Qg3 $11) 15... Qf8 {[%emt 0:01:30]} ({Vorzuziehen ist} 15... Nc5 $1 $15 16. Nxc5 bxc5) 16. Re3 {[%emt 0:17:29]} (16. Rad1 $11 {scheint genauer.}) 16... c5 $15 {[%emt 0:02:33]} 17. Nxf6+ {[%emt 0:05:35]} Nxf6 {[%emt 0:00:21]} 18. dxc5 {[%emt 0:02:21]} bxc5 {[%emt 0:01:25]} 19. Ne5 {[%emt 0:05:03]} Rd4 {[%emt 0:02:18]} 20. Qh3 {[%emt 0:01:00]} Rad8 {[%emt 0:03:43]} 21. Rae1 {[%emt 0:02:23]} Qd6 {[%emt 0:11:22]} (21... Nd7 {vereinfacht} 22. Nxd7 R8xd7 23. a4 Qb8) 22. Rg3 {[%emt 0:09:44] [#]} (22. a4 $15) 22... Kf8 {[%emt 0:01:40]} (22... Ne4 $142 $1 {[%cal Re4g3]} 23. Qh5 Qc7 24. Bxe4 Rxe4 (24... Bxe4 25. h3 $15) 25. Rxe4 Bxe4) 23. Ree3 {[%emt 0:02:10][%mdl 8192] Davon erholt Weiß sich nicht mehr.} (23. Rge3 $17 {ist zäher.}) 23... Be4 {[%emt 0:04:27]} 24. f4 {[%emt 0:01:13]} Qb6 {[%emt 0:10:26]} 25. Qh4 $2 {[%emt 0:03:23]} (25. Re1) 25... Qxb2 $19 {[%emt 0:07:09] Und ...Bxd3 würde nun gewinnen.} 26. Rxg7 {[%emt 0:07:19]} Kxg7 {[%emt 0:00:20][%csl Ge4][%cal Rb2g2] [#]} 27. Rh3 {[%emt 0:02:14]} Qxg2# {[%emt 0:00:17] Gewichteter Fehlerwert: Weiß=1.24/Schwarz=0.25 (präzise) .  Verlustzug:     	Weiß=1     	---        Fehler:       	Weiß=5     	Schwarz=2     Ungenau:       	Weiß=2     	Schwarz=3     OK:         	Weiß=6     	Schwarz=10    Bester:       	---       	Schwarz=1} 0-1